Cogmind - Beta 13 @@@ ROGUE MODE // 2024.06.09 @ 18:00:24 Player: weedlord420 Result: Self-destructed Performance ------------- Evolutions (1) 500 Regions Visited (2) 400 Robots Destroyed (45) 225 Value Destroyed (878) 878 Prototype IDs (4) 80 Alien Tech Used (0) 0 Bonus (0) 0 TOTAL SCORE: 2083 Bonus ------- None Cogmind --------- Core Integrity 294/400 Matter 300/300 Energy 280/280 System Corruption 3% Temperature Cool (0) Movement Hovering (48) Location -9/Materials Parts ------- > --- POWER (1) -------- Heavy Ion Engine > --- PROPULSION (4) --- Hover Unit Improved Hover Unit Improved Hover Unit Improved Hover Unit > --- UTILITY (2) ------ Medium Storage Unit Light Armor Plating > --- WEAPON (2) ------- Katana Katana > --- INVENTORY (10) --- Improved Ion Engine Light Treads ECM Suite Hardened Light Armor Plating Shield Generator Shield Generator Light Assault Rifle Grenade Launcher Katana Peak State ------------ > --- POWER ------------ Heavy Ion Engine > --- PROPULSION ------- Improved Hover Unit Improved Hover Unit Improved Hover Unit Improved Hover Unit > --- UTILITY ---------- Medium Storage Unit Hardened Light Armor Plating > --- WEAPON ----------- Katana Katana > --- INVENTORY -------- Ion Engine Light Treads Light Armor Plating Light Armor Plating Shield Generator Assault Rifle Assault Rifle Light Assault Rifle Grenade Launcher Katana [Rating: 21] Favorites ----------- Power Ion Engine Engine Ion Engine Propulsion Light Treads Treads Light Treads Hover Unit Improved Hover Unit Utility Medium Storage Unit Storage Medium Storage Unit Processor Signal Interpreter Protection Light Armor Plating Weapon Assault Rifle Ballistic Gun Assault Rifle Launcher Grenade Launcher Slashing Weapon Katana Build | -11 -10 -9 ------- Run | Yrd Mat Mat Slots Evolved 2 | . . 2 Power . | . . . Propulsion 2 | . . 2 Utility . | . . . Weapon . | . . . Parts Attached 48 | 5 20 23 Power 6 | 1 . 5 Engine 6 | 1 . 5 Core . | . . . Reactor . | . . . Propulsion 18 | 2 4 12 Treads 9 | 2 4 3 Leg . | . . . Wheel . | . . . Hover 9 | . . 9 Flight . | . . . Utility 8 | . 5 3 Device . | . . . Storage 1 | . 1 . Processor 1 | . 1 . Hackware . | . . . Protection 6 | . 3 3 Artifact . | . . . Weapon 16 | 2 11 3 Energy Gun . | . . . Energy Cannon . | . . . Ballistic Gun 9 | 2 6 1 Ballistic Cannon . | . . . Launcher 5 | . 5 . Special Weapon . | . . . Impact Weapon . | . . . Slashing Weapon 2 | . . 2 Piercing Weapon . | . . . Special Melee Weapon . | . . . Unidentified Prototypes 1 | . . 1 Parts Lost 4 | . . 4 Power . | . . . Propulsion 3 | . . 3 Utility 1 | . . 1 Weapon . | . . . Highest Loss Streak 2 | . . 2 To Critical Strikes . | . . . Average Slot Usage (%) 95 | . 94 97 Engine 13 | . 14 10 Treads 24 | . 27 13 Hover 7 | . . 29 Storage 13 | . 13 11 Protection 9 | . 9 11 Ballistic Gun 18 | . 23 6 Launcher 3 | . 4 . Slashing Weapon 4 | . . 14 Naked Turns . | . . . Heaviest Build 27 | 8 23 27 Greatest Support 80 | 40 40 80 Greatest Overweight (x) 1 | . . 1 Average Overweight (x) . | . . . Largest Inventory Capacity 10 | 5 10 10 Average Capacity 9 | 5 9 10 Most Carried 10 | 5 8 10 Average Carried 6 | 1 5 9 Final Capacity 10 | 5 10 10 Final Carried 9 | 1 8 9 Class Distribution -------------------- 100% | Mutant Dominant Class ---------------- Mutant | -10/Materials Mutant | -9/Materials Resources | -11 -10 -9 ----------- Run | Yrd Mat Mat Matter Collected 1080 | 250 536 294 Remotely . | . . . Salvage Created 1370 | . 611 759 Parts 97 | . 44 53 Haulers Intercepted 5 | . 2 3 Recyclers Shooed 1 | . 1 . Parts Field Recycled . | . . . Retrieved Matter . | . . . Parts Self-Destructed . | . . . Prevented . | . . . Kills | -11 -10 -9 ------- Run | Yrd Mat Mat Combat Hostiles Destroyed 27 | . 13 14 Melee 11 | . . 11 Guns 13 | . 10 3 AOE 3 | . 3 . Classes Destroyed 9 | . 8 1 Worker 2 | . 2 . Builder 2 | . 1 1 Hauler 5 | . 2 3 Recycler 2 | . 1 1 Operator 3 | . 2 1 Watcher 4 | . 2 2 Swarmer 11 | . 6 5 Grunt 11 | . 7 4 Sentry 5 | . . 5 Best Kill Streak 11 | . 6 11 Combat Bots Only 5 | . 5 2 Max Kills in Single Turn 2 | . 2 1 Gunslinging . | . . . Exploded 2 | . 2 . Melee 1 | . . 1 Uniques/NPCs Destroyed . | . . . Combat | -11 -10 -9 -------- Run | Yrd Mat Mat Hostile Shots Fired 147 | . 62 85 Missed 41 | . 19 22 Damage Taken 1119 | . 410 709 Core 148 | . 42 106 Absorbed by Shields . | . . . Regen/Repaired (Parts) 49 | . 49 . Core Remaining (%) 91 | 100 83 . Volleys Fired 84 | . 77 7 Largest 2 | . 2 2 Hottest 50 | . 50 40 Shots Fired 150 | . 136 14 Gun 143 | . 129 14 Cannon . | . . . Launcher 7 | . 7 . Special . | . . . Kinetic 143 | . 129 14 Thermal . | . . . Explosive 7 | . 7 . Electromagnetic . | . . . Robot Hit Streak 14 | . 14 2 Robot Miss Streak 5 | . 5 2 Penetration Max . | . . . Secondary Targets . | . . . Shots Hit Robots 123 | . 74 49 Core Hits 57 | . 36 21 Critical Kills . | . . . Critical Parts Destroyed . | . . . Critical Strikes 6 | . . 6 Sever 6 | . . 6 Melee Attacks 67 | . . 67 Impact . | . . . Slashing 67 | . . 67 Piercing . | . . . Sneak Attacks 8 | . . 8 Combat Hostiles . | . . . Follow-up Attacks 9 | . . 9 Damage Inflicted 2960 | . 1139 1821 Guns 918 | . 839 79 Cannons . | . . . Explosions 285 | . 285 . Melee 1742 | . . 1742 Ramming 15 | . 15 . Kinetic 918 | . 839 79 Thermal . | . . . Explosive 285 | . 285 . Electromagnetic . | . . . Impact . | . . . Slashing 1742 | . . 1742 Piercing . | . . . Highest Corruption 3 | . . 3 Average Corruption 1 | . . 1 Corruption Purged . | . . . Corruption Blocked . | . . . Overload Shots . | . . . Overflow Damage 204 | . 17 187 Projectiles . | . . . Explosions 17 | . 17 . Melee 187 | . . 187 Knockbacks . | . . . Impact . | . . . Kinetic . | . . . Secondary . | . . . Self-Inflicted Damage 3 | . 3 . Shots 1 | . 1 . Rammed 2 | . 2 . Targets Rammed 3 | . 3 . Kicked . | . . . Crushed 1 | . 1 . Highest Temperature 18 | . 18 11 Average Temperature 6 | . 6 3 Received Heat Transfer 330 | . 102 228 Siege Activations . | . . . Robots Corrupted . | . . . Combat Hostiles . | . . . Parts Fried . | . . . Impact Corruptions . | . . . Robots Melted . | . . . Combat Hostiles . | . . . Parts Melted . | . . . Heat Transferred . | . . . Parts Sabotaged . | . . . Parts Stolen . | . . . Parts Stripped . | . . . Power Chain Reactions . | . . . Alert | -11 -10 -9 ------- Run | Yrd Mat Mat Peak Influence 391 | . 246 391 Initial 23 | . . 23 Average 131 | . 100 226 Maximum Alert Level 1 | . 1 1 Low Security (%) 82 | 100 94 47 Level 1 17 | . 5 52 Level 2 . | . . . Level 3 . | . . . Level 4 . | . . . Level 5 . | . . . High Security . | . . . Max Security . | . . . Squads Dispatched 6 | . 3 3 Investigation 1 | . 1 . Extermination . | . . . Reinforcement 5 | . 2 3 Assault . | . . . Garrison . | . . . Intercept . | . . . Searches Triggered . | . . . Construction Impeded . | . . . Haulers Reinforced . | . . . Active Scanning Responses . | . . . Cargo Convoy Interrupts . | . . . Stealth | -11 -10 -9 --------- Run | Yrd Mat Mat Distress Signals 3 | . 2 1 Communications Jammed . | . . . Distress Signals . | . . . Times Spotted 51 | . 27 24 Peak Tracking Total 5 | . 5 4 Tactical Retreats 1 | . . 1 Traps | -11 -10 -9 ------- Run | Yrd Mat Mat Traps Triggered 4 | . 2 2 Indirectly . | . . . Trap Hack Attempts . | . . . Triggered . | . . . Disarmed . | . . . Reprogrammed . | . . . Reused . | . . . Traps Extracted . | . . . Installed . | . . . Triggered . | . . . Machines | -11 -10 -9 ---------- Run | Yrd Mat Mat Machines Disabled 1 | . 1 . Max in Single Turn 1 | . 1 . Machines Repaired . | . . . Machines Dismantled . | . . . Machines Sabotaged . | . . . Overloaded Fab Kills . | . . . Hacking | -11 -10 -9 --------- Run | Yrd Mat Mat Machines Accessed 8 | . 6 2 Terminals 6 | . 5 1 Fabricators . | . . . Repair Stations 1 | . 1 . Recycling Units . | . . . Scanalyzers 1 | . . 1 Garrison Access . | . . . Total Hacks 26 | . 16 10 Successful 17 | . 9 8 Failed 9 | . 7 2 Catastrophic 3 | . 3 . Database Lockouts . | . . . Manual . | . . . Terminals 18 | . 14 4 Fabricators . | . . . Repair Stations 2 | . 2 . Recycling Units . | . . . Scanalyzers 6 | . . 6 Garrison Access . | . . . Terminal Hacks 9 | . 7 2 Prototype ID Bank 2 | . 1 1 Emergency Access Points 1 | . 1 . Unreport Threat 1 | . . 1 Locate Traps 3 | . 3 . Hauler Manifests 1 | . 1 . Zone Layout 1 | . 1 . Fabricator Hacks . | . . . Repair Station Hacks 2 | . 2 . Scan Component 1 | . 1 . Repair 1 | . 1 . Recycling Unit Hacks . | . . . Scanalyzer 6 | . . 6 Insert Component 3 | . . 3 Analyze 3 | . . 3 Garrison Access Hacks . | . . . Unauthorized Hacks . | . . . Terminals . | . . . Fabricators . | . . . Repair Stations . | . . . Recycling Units . | . . . Scanalyzers . | . . . Garrison Access . | . . . Data Cores Recovered . | . . . Used . | . . . Hacking Detections 6 | . 4 2 Full Trace Events 1 | . 1 . Feedback Events . | . . . Feedback Blocked . | . . . Robot Schematics Acquired . | . . . Robots Built . | . . . Authchips . | . . . Time . | . . . Total Robot Build Rating . | . . . Part Schematics Acquired 3 | . . 3 Parts Built . | . . . Authchips . | . . . Time . | . . . Total Part Build Rating . | . . . Parts Repaired 1 | . 1 . Time 26 | . 26 . Parts Recycled . | . . . Recycled Matter . | . . . Retrieved Matter . | . . . Retrieved Components . | . . . Parts Scanalyzed 3 | . . 3 Part Schematics Acquired 3 | . . 3 Parts Damaged . | . . . Bothacking | -11 -10 -9 ------------ Run | Yrd Mat Mat Used RIF Installer . | . . . Robots Hacked . | . . . Non-combat . | . . . Combat . | . . . Robot Hacks Applied . | . . . Relay Couplers Released . | . . . Fabnet Peak Effective % . | . . . Robots Rewired . | . . . Allies Hacked . | . . . Hacks Repelled . | . . . Allies | -11 -10 -9 -------- Run | Yrd Mat Mat Total Allies . | . . . Largest Group . | . . . Highest-Rated Group . | . . . Highest-Rated Ally . | . . . Total Orders . | . . . Ally Attacks . | . . . Total Damage . | . . . Kills . | . . . Allies Corrupted . | . . . Allies Melted . | . . . Intel | -11 -10 -9 ------- Run | Yrd Mat Mat Robot Analysis Total . | . . . Derelict Logs Recovered . | . . . Drone Launches . | . . . Drone Recoveries . | . . . Exploration | -11 -10 -9 ------------- Run | Yrd Mat Mat Turns Passed 2331 | 55 1666 610 Spaces Moved 1468 | 45 845 578 Core 24 | 24 . . Treads 956 | 21 845 90 Legs . | . . . Wheels . | . . . Hover 488 | . . 488 Flight . | . . . Fastest Speed 48 | 50 160 48 Average Speed 121 | 101 160 66 Slowest Speed 160 | 160 160 160 Overloaded Moves . | . . . Propulsion Burnouts . | . . . Robots Hopped . | . . . Cave-ins Triggered . | . . . Exploration Rate (%) 50 | 3 99 50 Regions Visited 2 Branch Regions . Pre-discovered Areas . | . . . Known Exits Taken 1 | . 1 . Unknown Exits Taken 1 | 1 . . Scrap Searched . | . . . Spaces Dug 17 | . 17 . Terrain Destroyed 47 | . 47 . Melee . | . . . Projectile . | . . . AOE 47 | . 47 . Terrain Rammed . | . . . Walls Destroyed . | . . . Machines Disabled . | . . . Actions | -11 -10 -9 --------- Run | Yrd Mat Mat Total 1778 | 55 1024 699 Wait 71 | . 62 9 Move 1466 | 44 844 578 Hop . | . . . Pick Up 37 | 6 16 15 Fast Attach 2 | . . 2 Attach 20 | 5 6 9 Detach . | . . . Swap 26 | . 14 12 Drop 13 | . 2 11 Fire 84 | . 77 7 Melee 56 | . . 56 Ram . | . . . Kick . | . . . Crush 3 | . 3 . Escape Stasis . | . . . Rewire . | . . . Trap . | . . . Miscellaneous . | . . . Route ------- -11/Scrapyard -10/Materials (discovered 4 exits: *Mat x3 / [*Min]) -9/Materials (discovered 4 exits: [*Mat x2] / [*Min x2]) History --------- Turn | Location | Event 6 | -11/Scrapyard | Discovered new exit (range 15) 56 | -11/Scrapyard | Entered Materials 316 | -10/Materials | Build established: Mutant 440 | -10/Materials | Discovered new exit (range 9) 620 | -10/Materials | Discovered new exit (range 8) 822 | -10/Materials | Discovered new exit (range 15) 1157 | -10/Materials | Repaired Lgt. Armor Plating 1255 | -10/Materials | Discovered new exit (range 15) 1298 | -10/Materials | Identified exit to Materials 1722 | -10/Materials | Entered another Materials area 1722 | -9/Materials | Evolved 2 slots: Propulsion x2 1970 | -9/Materials | Discovered new exit (range 15) 2076 | -9/Materials | Discovered new exit (range 8) 2202 | -9/Materials | Discovered new exit (range 16) 2275 | -9/Materials | Discovered new exit (range 3) 2332 | -9/Materials | Self-destructed Last Messages --------------- Katana follow-up attack on G-34 Mercenary. G-34 Mercenary destroyed. Acquired 30 matter. EXIT=FOUND Y-45 Defender Lgt. Treads severed. Lgt. Armor Plating destroyed. Imp. Hover Unit destroyed. Y-45 Defender destroyed. Acquired 20 matter. Connecting with Terminal... >>Prototypes Downloading prototype IDs... Adv. Beam Rifle Hvy. Ion Engine >>Alert(Purge) Purged threat record, alert level lowered. Acquired ECM Suite. Triggered Shock Trap. The floor emits a surge of raw power. System corrupted (+2). Map ----- +----------------------------------------------------+ | ?????????????????????????????????????????? | | ?????????????????????????????????????????? | | ?????????????????????????????????????????? | | ?????????????????????????????????????????? | | ?????????????????????????????????????????? | | ?????????????????????????????????????????? | | ?????????????????????????????????????????? | | ?????????????????????????????????????????? | | ?????????????????????????????????????????? | | ?????????????????????????????????????????? | | ?????????????????????????????????????????? | | ?????????????????????????????????????????? | | ?????????????????????????????????????????? | | ?????????????????????????????????????????? | | ???????????????######????????????????????? | | ???????????????# ?????????????????????? | | ??????????????? ???????????? ??????? | | ???????????????? T ???????????# #?????? | | ???????????????? ???????????# +?????? | | ????????????????# #???????????# #?????? | | ????????????????# #???????????# #?????? | | ?????????######## #???????????# ####??? | | ?????????# # #???????????# !##?? | | ?????????# # ############# !#?? | | ?????????# # ! !??? | | ?????????# ]] #@ ???? | | ?????????# ] + ""##?????# ????? | | ?????????# # Y"#??????# ?????? | | ?????????######## / ""#?????## ##????? | | ????????????????# #?????# ###### | | ????????????????# !#?????# | | ????????????????# ########???# | | ????????????????# # #???# | | ????????????????# # "" #???# ###### | | ????????????????# # "T #???# #####????? | | ????????????????# # "" #???# #????????? | | ????????????????# + #???# #????????? | | ????????????????# # #?### ##???????? | | ????????????????# ####+##### ! #???????? | | ????????? = #???????? | | ????????? % #???????? | | ????????????################# #???????? | | ????????????????????????????######???????? | | ?????????????????????????????????????????? | | ?????????????????????????????????????????? | | | | | | | | | | | +----------------------------------------------------+ Best States ------------- Heat Dissipation 28 Energy Generation 14 Energy Capacity 280 Matter Stores 300 Matter Capacity 300 Sight Range 16 Terrain Scan Density 10 Armor Coverage 150 Evasion (%) 55 Recoil Reduction 4 Item Schematics ----------------- Imp. Hover Unit | -9/Materials | Scanalyzed Hrd. Light Armor Plating | -9/Materials | Scanalyzed Shield Generator | -9/Materials | Scanalyzed Robot Schematics ------------------ None Fabricated ------------ Nothing Alien Tech Used ----------------- None Achievements -------------- None Challenges ------------ None Game ------ Seed StasisNodeDatajack Manual? 0 Play Time 00:18:17 Cumulative 21.0 hours Start 2024.05.26 @ 12:13:56 End 2024.06.09 @ 18:00:24 Sessions 3 Manual Loads 0 Difficulty Rogue Special Mode None Game No. 47 Rogue 46 Adventurer 1 Explorer 0 Win Type - Total 0 Types 0/0/0/0/0/0/0/0/0 Lore% 9 Gallery% 22 Achievement% 19 Wizard Run 0 Options --------- Layout 1 ASCII 0 Keyboard 0 Movement Mouse Keybinds 0 Fullscreen 2 Font 24/Terminus Map View 50x35 Zoom Use 0% Tactical HUD 0 Map Filters NONE Filters NONE Steam 1 RUN: 0455dc96-2b15-4ea4-8335-1a21e3c746d0